[Event "Budapest Spring Festival 2019"]
[Site "Budapest"]
[Date "2019.04.12"]
[Round "4.34"]
[White "Nomin-Erdene, Davaademberel"]
[Black "Lyell, Mark"]
[Result "1-0"]
[ECO "B00"]
[WhiteElo "2399"]
[BlackElo "2298"]
[Annotator "NA"]
[PlyCount "103"]
[EventDate "2019.04.09"]
[EventType "swiss"]
[EventCountry "HUN"]
[SourceTitle "playchess.com"]
[Source "ChessBase"]
[SourceQuality "1"]
[TimeControl "40/5400+30:1800+30"]

1. e4 {[%emt 0:00:04]} d6 {[%emt 0:01:49]} 2. d4 {[%emt 0:00:20]} g6 {[%emt 0:00:52]} 3. Nc3 {[%emt 0:00:14]} a6 {[%emt 0:00:19]} 4. a4 {[%emt 0:00:12]} Bg7 {[%emt 0:01:13]} 5. Be3 {[%emt 0:00:10]} Nf6 {[%emt 0:00:40]} 6. f3 {[%emt 0:00:12]} Nc6 {[%emt 0:00:08] B06: Modern Defence} (6... c6 7. Qd2 h5 8. Bd3 a5 9. Nge2 Na6 10. O-O O-O 11. Kh1 e5 12. Bc4 Nb4 13. Bb3 Qc7 14. Bh6 {½-½ (70) Radjabov,T (2745)-Nakamura,H (2775) Stavanger 2013}) 7. Qd2 {[%emt 0:07:39]} e5 {[%emt 0:00:31]} 8. d5 {[%emt 0:00:07]} Ne7 {[%emt 0:02:14]} 9. Rd1 {[%emt 0:06:22]} O-O {[%emt 0:00:41]} 10. g4 {[%emt 0:00:04]} Ne8 $146 {[%emt 0:00:58]} ({Predecessor:} 10... c6 11. dxc6 Nxc6 12. Qxd6 Nd4 13. Qxd8 Rxd8 14. Bd3 {0-1 (42) Bolacky,J (2155)-Vokac,M (2520) Ceske Budejovice 2000}) 11. h4 {[%emt 0:13:47]} f5 {[%emt 0:01:55]} 12. g5 {[%emt 0:09:18]} fxe4 {[%emt 0:12:00]} 13. Nxe4 {[%emt 0:04:11]} Nf5 {[%emt 0:05:27]} 14. Bf2 {[%emt 0:11:51]} Nd4 {[%emt 0:04:54]} 15. Bg2 {[%emt 0:00:13]} c6 {[%emt 0:08:56]} 16. c3 {[%emt 0:04:19]} Nf5 {[%emt 0:15:09]} 17. Bf1 {[%emt 0:09:30]} Qe7 {[%emt 0:03:51]} 18. Bc4 {[%emt 0:01:48]} b5 {[%emt 0:00:55]} 19. Ba2 {[%emt 0:00:40]} bxa4 {[%emt 0:04:17]} 20. h5 {[%emt 0:04:39]} gxh5 {[%emt 0:01:57]} 21. Rxh5 {[%emt 0:00:05]} Qf7 {[%emt 0:04:22]} 22. g6 {[%emt 0:09:31]} Qxg6 {[%emt 0:01:20]} 23. dxc6+ {[%emt 0:00:04]} Be6 {[%emt 0:01:59]} 24. Bxe6+ {[%emt 0:01:28]} Qxe6 {[%emt 0:00:04]} 25. Ng5 {[%emt 0:01:48]} Qc4 {[%emt 0:06:15]} 26. Nxh7 {[%emt 0:00:57]} Nf6 {[%emt 0:04:09]} 27. Rxf5 {[%emt 0:02:17]} Nxh7 {[%emt 0:00:13]} 28. Rxf8+ {[%emt 0:01:37]} Bxf8 {[%emt 0:00:43]} 29. c7 {[%emt 0:04:04]} Nf6 {[%emt 0:08:21]} 30. Qg5+ {[%emt 0:04:08]} Kf7 {[%emt 0:00:12]} 31. Bh4 {[%emt 0:01:11]} Qe6 {[%emt 0:04:20]} 32. Nh3 {[%emt 0:02:22]} Bg7 {[%emt 0:03:20]} 33. Qg2 {[%emt 0:00:39]} Bh6 {[%emt 0:00:31]} 34. Ng5+ {[%emt 0:00:25]} Bxg5 {[%emt 0:00:12]} 35. Qxg5 {[%emt 0:00:02]} Rc8 {[%emt 0:01:03]} 36. Qxf6+ {[%emt 0:00:16]} Qxf6 {[%emt 0:00:16]} 37. Bxf6 {[%emt 0:00:02]} Kxf6 {[%emt 0:00:35]} 38. Rxd6+ {[%emt 0:00:05]} Kf5 {[%emt 0:01:32]} 39. Rxa6 {[%emt 0:01:51]} Rxc7 {[%emt 0:00:39]} 40. Rxa4 {[%emt 0:00:00]} Rh7 {[%emt 0:00:00]} 41. Re4 {[%emt 0:05:53]} Rh3 {[%emt 0:02:44]} 42. Re3 {[%emt 0:00:29]} Kf4 {[%emt 0:02:34]} 43. Kd2 {[%emt 0:00:22]} Rh2+ {[%emt 0:02:31]} 44. Re2 {[%emt 0:00:07]} Rh5 {[%emt 0:00:35]} 45. Re4+ {[%emt 0:04:55]} Kxf3 {[%emt 0:00:53]} 46. Kd3 {[%emt 0:00:04]} Kf2 {[%emt 0:04:56]} 47. Kc4 {[%emt 0:00:52]} Kf3 {[%emt 0:00:50]} 48. Kd5 {[%emt 0:00:16]} Rh2 {[%emt 0:00:51]} 49. b4 {[%emt 0:00:17]} Rc2 {[%emt 0:01:07]} 50. c4 {[%emt 0:00:17]} Rd2+ {[%emt 0:00:34]} 51. Kxe5 {[%emt 0:00:06]} Rd8 {[%emt 0:00:21]} 52. Rh4 $18 {[%emt 0:00:57] Ke4+ Kxe4} 1-0

[Event "Budapest Spring Festival 2019"]
[Site "Budapest"]
[Date "2019.04.12"]
[Round "4.35"]
[White "Turzo, Attila"]
[Black "Taylor, Adam C"]
[Result "0-1"]
[ECO "A62"]
[WhiteElo "2296"]
[BlackElo "2398"]
[Annotator "NA"]
[PlyCount "91"]
[EventDate "2019.04.09"]
[EventType "swiss"]
[EventCountry "HUN"]
[SourceTitle "playchess.com"]
[Source "ChessBase"]
[SourceQuality "1"]
[TimeControl "40/5400+30:1800+30"]

1. d4 {[%emt 0:00:08]} Nf6 {[%emt 0:00:06]} 2. c4 {[%emt 0:00:06]} c5 {[%emt 0:00:20]} 3. d5 {[%emt 0:00:10]} e6 {[%emt 0:00:35]} 4. Nc3 {[%emt 0:00:15]} exd5 {[%emt 0:00:06]} 5. cxd5 {[%emt 0:00:06]} d6 {[%emt 0:00:06]} 6. Nf3 {[%emt 0:00:35]} g6 {[%emt 0:00:05]} 7. g3 {[%emt 0:00:10]} Bg7 {[%emt 0:01:12]} 8. Bg2 {[%emt 0:00:05]} O-O {[%emt 0:03:01]} 9. O-O {[%emt 0:00:05]} Bg4 {[%emt 0:03:48]} 10. h3 {[%emt 0:16:45]} Bxf3 {[%emt 0:00:29]} 11. Bxf3 {[%emt 0:02:47]} Qd7 {[%emt 0:07:45]} 12. Bg2 {[%emt 0:03:47]} b5 {[%emt 0:00:06]} 13. Qc2 {[%emt 0:21:39]} Na6 {[%emt 0:01:15]} 14. e4 {[%emt 0:04:29]} Rfe8 {[%emt 0:01:30]} 15. a3 $11 {[%emt 0:05:39]} c4 {[%emt 0:08:53]} 16. Be3 {[%emt 0:02:51]} Rac8 {[%emt 0:00:20]} 17. Rae1 {[%emt 0:07:18]} Nc5 {[%emt 0:00:21]} 18. Bxc5 {[%emt 0:01:00]} Rxc5 {[%emt 0:00:04]} 19. f4 {[%emt 0:00:10]} a5 {[%emt 0:20:40]} 20. e5 {[%emt 0:04:06]} dxe5 {[%emt 0:00:04]} 21. fxe5 Nxd5 {[%emt 0:00:15]} 22. Qf2 {[%emt 0:07:24]} Nxc3 {[%emt 0:00:08]} 23. Qxc5 {[%emt 0:00:11]} Na4 {[%emt 0:00:02]} 24. Qd5 {[%emt 0:03:16]} Qxd5 {[%emt 0:04:25]} 25. Bxd5 {[%emt 0:00:05]} Re7 {[%emt 0:00:11]} 26. Rxf7 {[%emt 0:08:19]} Rxf7 {[%emt 0:00:24]} 27. Rf1 {[%emt 0:00:01]} Bxe5 {[%emt 0:00:24]} 28. Rxf7 {[%emt 0:06:21]} Kh8 {[%emt 0:00:07]} 29. Rb7 {[%emt 0:01:06]} Nxb2 {[%emt 0:01:34]} 30. Rxb5 {[%emt 0:00:09]} c3 {[%emt 0:00:24]} 31. Be4 {[%emt 0:01:00]} Bd4+ {[%emt 0:00:38]} 32. Kg2 {[%emt 0:01:13]} Nc4 {[%emt 0:00:05]} 33. a4 {[%emt 0:01:19]} Kg7 {[%emt 0:02:31]} 34. Rb7+ {[%emt 0:01:29]} Kf6 {[%emt 0:00:06]} 35. Rc7 {[%emt 0:00:31]} Ke5 {[%emt 0:03:08]} 36. Bd3 {[%emt 0:00:05]} Nb6 {[%emt 0:00:03]} 37. Bc2 {[%emt 0:00:18]} Nd5 {[%emt 0:00:08]} 38. Rxh7 {[%emt 0:03:08]} Ne3+ {[%emt 0:00:04]} 39. Kf3 {[%emt 0:00:05]} Nxc2 {[%emt 0:00:02]} 40. Ke2 {[%emt 0:00:00]} Nb4 {[%emt 0:00:00]} 41. Rc7 {[%emt 0:04:23]} c2 {[%emt 0:04:06]} 42. h4 {[%emt 0:03:00]} Bb2 {[%emt 0:02:11]} 43. Kd2 {[%emt 0:04:37]} Kf5 {[%emt 0:01:17]} 44. Rc4 {[%emt 0:01:40]} c1=Q+ {[%emt 0:01:04]} 45. Rxc1 {[%emt 0:04:56]} Bxc1+ {[%emt 0:00:02]} 46. Kxc1 {[%emt 0:00:07]} 0-1

[Event "Budapest Spring Festival 2019"]
[Site "Budapest"]
[Date "2019.04.12"]
[Round "4.36"]
[White "Nguyen, Van Thanh"]
[Black "Nemeth, Zoltan"]
[Result "1-0"]
[ECO "E12"]
[WhiteElo "2391"]
[BlackElo "2279"]
[Annotator "NA"]
[PlyCount "69"]
[EventDate "2019.04.09"]
[EventType "swiss"]
[EventCountry "HUN"]
[SourceTitle "playchess.com"]
[Source "ChessBase"]
[SourceQuality "1"]
[TimeControl "40/5400+30:1800+30"]

1. d4 {[%emt 0:00:03]} Nf6 {[%emt 0:05:16]} 2. Nf3 {[%emt 0:00:15]} b6 {[%emt 0:00:43]} 3. c4 {[%emt 0:00:31]} e6 {[%emt 0:00:07]} 4. a3 {[%emt 0:00:14]} Bb7 {[%emt 0:00:16]} 5. Nc3 {[%emt 0:00:24]} Be7 {[%emt 0:00:57]} 6. d5 {[%emt 0:01:20]} O-O {[%emt 0:01:48]} 7. e4 {[%emt 0:01:15]} d6 {[%emt 0:00:24]} 8. Be2 {[%emt 0:01:09]} a5 {[%emt 0:03:14] E12: Queen's Indian: Unusual White 4th moves, 4 a3, 4 Nc3 Bb7 5 a3 and 4 Nc3 Bb7} (8... Nbd7 9. O-O a5 10. Be3 Ng4 11. Bd2 Bf6 12. Ne1 Nge5 13. Rc1 Ng6 14. b4 axb4 15. axb4 c5 16. dxc6 Bxc6 {0-1 (57) Smeets,J (2643)-Bartel,M (2619) Biel 2013}) 9. Nd4 {[%emt 0:07:19]} c5 {[%emt 0:28:11]} 10. Ndb5 $146 {[%emt 0:04:30]} ({Predecessor:} 10. Nc2 Re8 11. O-O Bf8 12. Bg5 Nbd7 13. Ne3 Be7 14. dxe6 fxe6 15. Qc2 Ng4 16. Bf4 Nxe3 17. Bxe3 {1-0 (46) Lorincz,I (2370)-Pal,G (2230) Budapest 1994}) 10... e5 {[%emt 0:02:00]} 11. O-O {[%emt 0:02:39]} Ba6 {[%emt 0:01:28]} 12. Qd3 {[%emt 0:02:31]} Bxb5 {[%emt 0:00:15]} (12... Ne8 $16) 13. Nxb5 {[%emt 0:01:39]} Ne8 {[%emt 0:03:09]} 14. g3 {[%emt 0:02:42]} Nc7 {[%emt 0:01:04]} 15. Nc3 {[%emt 0:00:30]} Bg5 {[%emt 0:01:43]} 16. f4 {[%emt 0:00:54]} Bf6 {[%emt 0:02:28]} 17. Kh1 {[%emt 0:05:27]} Nd7 {[%emt 0:00:22]} 18. Bd2 {[%emt 0:06:36]} exf4 {[%emt 0:00:40]} 19. gxf4 $16 {[%emt 0:00:20]} ({Don't do} 19. Bxf4 $6 Qe7 $14) 19... Bd4 {[%emt 0:00:21]} 20. Rae1 {[%emt 0:05:45]} Re8 {[%emt 0:06:30]} 21. Bd1 {[%emt 0:01:05]} Rb8 {[%emt 0:04:16]} 22. Ba4 {[%emt 0:01:26]} Re7 {[%emt 0:11:19]} 23. e5 {[%emt 0:06:23]} b5 {[%emt 0:01:07]} 24. exd6 {[%emt 0:13:09]} Rxe1 {[%emt 0:00:39]} 25. Rxe1 {[%emt 0:00:13]} Nxd5 {[%emt 0:06:32]} 26. Nxd5 {[%emt 0:02:48]} bxa4 {[%emt 0:00:05]} 27. Ne7+ {[%emt 0:01:22]} Kh8 {[%emt 0:00:57]} 28. Nc6 {[%emt 0:00:32]} Qb6 {[%emt 0:00:18]} 29. Nxb8 {[%emt 0:00:35]} Qxb8 {[%emt 0:00:09]} 30. Bc3 {[%emt 0:03:12]} Bxc3 {[%emt 0:05:32]} 31. bxc3 {[%emt 0:00:28]} Kg8 {[%emt 0:02:33]} 32. Re7 {[%emt 0:02:09]} Nf8 {[%emt 0:05:09]} 33. Qf5 {[%emt 0:01:24]} f6 {[%emt 0:00:35]} 34. Qxc5 {[%emt 0:02:44]} Qb1+ {[%emt 0:00:17]} 35. Qg1 {[%emt 0:00:33]} 1-0

[Event "Budapest Spring Festival 2019"]
[Site "Budapest"]
[Date "2019.04.12"]
[Round "4.37"]
[White "Bronstein, Or"]
[Black "Karacsonyi, Gellert"]
[Result "1-0"]
[ECO "E04"]
[WhiteElo "2387"]
[BlackElo "2279"]
[Annotator "NA"]
[PlyCount "79"]
[EventDate "2019.04.09"]
[EventType "swiss"]
[EventCountry "HUN"]
[SourceTitle "playchess.com"]
[Source "ChessBase"]
[SourceQuality "1"]
[TimeControl "40/5400+30:1800+30"]

1. d4 {[%emt 0:00:03]} Nf6 {[%emt 0:00:10]} 2. c4 {[%emt 0:00:05]} e6 {[%emt 0:00:11]} 3. Nf3 {[%emt 0:00:48]} d5 {[%emt 0:00:08]} 4. g3 {[%emt 0:00:13]} dxc4 {[%emt 0:00:06]} 5. Bg2 {[%emt 0:00:05]} Bd7 {[%emt 0:00:11]} 6. Ne5 {[%emt 0:00:06]} Bc6 {[%emt 0:00:06]} 7. Nxc6 {[%emt 0:00:05]} Nxc6 {[%emt 0:00:08]} 8. O-O {[%emt 0:00:13]} Qd7 {[%emt 0:00:04]} 9. e3 {[%emt 0:00:04]} O-O-O {[%emt 0:00:07]} 10. Nc3 {[%emt 0:01:07]} Nd5 {[%emt 0:00:12]} 11. Bd2 {[%emt 0:00:18]} Bb4 {[%emt 0:00:07]} 12. Na4 {[%emt 0:00:09]} Bxd2 {[%emt 0:19:22]} 13. Qxd2 {[%emt 0:00:34]} Nb6 {[%emt 0:00:22]} 14. Nc5 {[%emt 0:07:24]} Qd6 {[%emt 0:03:02]} 15. b4 {[%emt 0:03:29]} cxb3 {[%emt 0:06:08]} 16. Rfc1 {[%emt 0:00:30]} Nd5 {[%emt 0:12:18]} 17. Qe2 {[%emt 0:07:31]} b2 {[%emt 0:18:30]} 18. Qxb2 {[%emt 0:00:27]} b6 {[%emt 0:00:11]} 19. Na6 {[%emt 0:04:59]} Nb8 {[%emt 0:08:05]} 20. Qb5 {[%emt 0:14:29]} Nxa6 {[%emt 0:00:44]} 21. Qxa6+ {[%emt 0:00:05]} Kb8 {[%emt 0:04:58]} 22. e4 {[%emt 0:19:41]} Nb4 {[%emt 0:00:12]} 23. Qc4 {[%emt 0:00:03]} Qxd4 {[%emt 0:07:52]} 24. Qxc7+ {[%emt 0:00:02]} Ka8 {[%emt 0:00:04]} 25. e5+ {[%emt 0:09:19]} Nd5 {[%emt 0:00:11]} 26. Rd1 {[%emt 0:00:02]} Qg4 {[%emt 0:12:38]} 27. a4 {[%emt 0:00:41]} Qb4 {[%emt 0:04:42]} 28. Rac1 {[%emt 0:07:41]} Rhf8 {[%emt 0:02:40]} 29. a5 {[%emt 0:01:47]} Qb5 {[%emt 0:00:21]} 30. axb6 {[%emt 0:02:56]} Qxb6 {[%emt 0:00:15]} 31. Qc4 {[%emt 0:00:18]} Qb7 {[%emt 0:00:50]} 32. Rb1 {[%emt 0:01:06]} Qd7 {[%emt 0:00:28]} 33. Qc5 {[%emt 0:00:25]} f6 {[%emt 0:00:36]} 34. Ra1 {[%emt 0:01:59]} Rf7 {[%emt 0:00:30]} 35. Ra6 {[%emt 0:01:18]} Qc7 {[%emt 0:00:29]} 36. Qxc7 {[%emt 0:02:55]} Rxc7 {[%emt 0:00:02]} 37. Rxe6 {[%emt 0:00:02]} Rcd7 {[%emt 0:00:59]} 38. Rd6 {[%emt 0:00:12]} Rxd6 {[%emt 0:00:13]} 39. exd6 {[%emt 0:00:02]} Rxd6 {[%emt 0:00:11]} 40. Rxd5 {[%emt 0:00:00]} 1-0

[Event "Budapest Spring Festival 2019"]
[Site "Budapest"]
[Date "2019.04.12"]
[Round "4.38"]
[White "Kathmale, Sameer"]
[Black "Ravi, Teja S."]
[Result "0-1"]
[ECO "B90"]
[WhiteElo "2279"]
[BlackElo "2383"]
[Annotator "NA"]
[PlyCount "132"]
[EventDate "2019.04.09"]
[EventType "swiss"]
[EventCountry "HUN"]
[SourceTitle "playchess.com"]
[Source "ChessBase"]
[SourceQuality "1"]
[TimeControl "40/5400+30:1800+30"]

1. e4 {[%emt 0:07:00]} c5 {[%emt 0:00:28]} 2. Nf3 {[%emt 0:00:47]} d6 {[%emt 0:00:23]} 3. d4 {[%emt 0:00:31]} cxd4 {[%emt 0:00:19]} 4. Nxd4 {[%emt 0:00:09]} Nf6 {[%emt 0:00:07]} 5. Nc3 {[%emt 0:00:50]} a6 {[%emt 0:00:51]} 6. Nb3 {[%emt 0:00:08]} g6 {[%emt 0:01:37]} 7. Be2 {[%emt 0:03:34]} Bg7 {[%emt 0:00:06]} 8. Be3 {[%emt 0:01:09]} O-O {[%emt 0:02:18]} 9. O-O {[%emt 0:03:53]} Nc6 {[%emt 0:03:43]} 10. f4 {[%emt 0:00:57]} Bd7 {[%emt 0:02:45]} 11. Bf3 {[%emt 0:03:44]} Rc8 {[%emt 0:02:07] B74: Sicilian Dragon: Classical System with 9 Nb3} 12. Nd5 {[%emt 0:04:29]} Nxd5 {[%emt 0:04:33]} 13. exd5 {[%emt 0:00:02]} Na5 {[%emt 0:00:12]} 14. Nxa5 {[%emt 0:10:20]} Qxa5 {[%emt 0:01:24]} 15. c3 {[%emt 0:00:06]} b5 {[%emt 0:08:02]} 16. a3 {[%emt 0:05:37] [#]} Rfe8 $146 {[%emt 0:06:11]} ({Predecessor:} 16... Qc7 17. Qd2 a5 18. Bd4 Bxd4+ 19. Qxd4 {0-1 (45) Camacho,C (2170)-Kosintseva,N (2517) Richardson 2014}) 17. Re1 {[%emt 0:00:24]} Qc7 {[%emt 0:04:59]} 18. Bd4 {[%emt 0:11:32]} Bxd4+ {[%emt 0:00:53]} 19. Qxd4 {[%emt 0:00:02]} Qc5 {[%emt 0:00:10]} 20. Rad1 {[%emt 0:01:05]} h5 {[%emt 0:02:47]} 21. Kf2 {[%emt 0:02:56]} a5 {[%emt 0:06:25]} 22. Re3 {[%emt 0:04:39]} Qxd4 {[%emt 0:00:33]} 23. Rxd4 {[%emt 0:00:03]} Rc5 {[%emt 0:05:03]} 24. Be2 {[%emt 0:07:55]} Kf8 {[%emt 0:04:53]} 25. h3 {[%emt 0:07:37]} Rb8 {[%emt 0:03:26]} 26. g4 {[%emt 0:02:15]} h4 {[%emt 0:07:43]} 27. g5 {[%emt 0:05:42]} Rbc8 {[%emt 0:09:38]} 28. Bg4 {[%emt 0:09:59]} Bf5 {[%emt 0:05:16]} 29. Bxf5 {[%emt 0:02:19]} gxf5 {[%emt 0:00:04]} 30. Red3 {[%emt 0:01:13]} Kg7 {[%emt 0:04:45]} 31. Re3 {[%emt 0:00:47]} R8c7 {[%emt 0:00:31]} 32. Ke2 {[%emt 0:00:43]} Kg6 {[%emt 0:03:17]} 33. Kd2 {[%emt 0:00:51]} b4 {[%emt 0:01:11]} 34. axb4 {[%emt 0:00:58]} axb4 {[%emt 0:00:04]} 35. Rxb4 {[%emt 0:01:11]} Rxd5+ {[%emt 0:00:04]} 36. Rd4 {[%emt 0:00:31]} Rb5 {[%emt 0:04:00]} 37. b4 {[%emt 0:00:21]} f6 {[%emt 0:00:11]} 38. gxf6 {[%emt 0:00:50]} Kxf6 {[%emt 0:00:02]} 39. Kc2 {[%emt 0:00:32]} Rc6 {[%emt 0:02:25]} 40. Kb3 {[%emt 0:00:00]} e5 {[%emt 0:00:00]} 41. fxe5+ {[%emt 0:08:17]} dxe5 {[%emt 0:05:48]} 42. Rxh4 {[%emt 0:00:48]} Kg5 {[%emt 0:01:28]} 43. Rh8 {[%emt 0:05:46]} e4 {[%emt 0:02:32]} 44. c4 {[%emt 0:05:21]} Re5 {[%emt 0:00:13]} 45. h4+ {[%emt 0:03:00]} Kf4 {[%emt 0:00:32]} 46. Re1 {[%emt 0:00:12]} e3 {[%emt 0:00:12]} 47. b5 {[%emt 0:00:59]} Rd6 {[%emt 0:01:19]} 48. h5 {[%emt 0:01:53]} e2 {[%emt 0:00:37]} 49. Rg8 {[%emt 0:01:57]} Rd1 {[%emt 0:06:36]} 50. Rgg1 {[%emt 0:00:07]} Rxe1 {[%emt 0:00:07]} 51. Rxe1 {[%emt 0:00:05]} Ke3 $19 {[%emt 0:00:03]} 52. b6 {[%emt 0:03:32]} f4 {[%emt 0:00:04]} 53. b7 {[%emt 0:00:22]} Re8 {[%emt 0:00:05]} 54. c5 {[%emt 0:00:26]} f3 {[%emt 0:00:21]} 55. c6 {[%emt 0:00:50]} f2 {[%emt 0:04:39]} 56. Rxe2+ {[%emt 0:00:54]} Kxe2 {[%emt 0:00:03]} 57. c7 {[%emt 0:00:07]} f1=Q {[%emt 0:00:09]} 58. c8=Q {[%emt 0:00:04]} Qf3+ {[%emt 0:05:42]} 59. Kb2 {[%emt 0:02:48]} Qf8 {[%emt 0:03:32]} 60. Qc4+ {[%emt 0:01:14]} Kf3 {[%emt 0:00:30]} 61. Qd5+ {[%emt 0:02:05]} Kg4 {[%emt 0:00:29]} 62. Qd1+ {[%emt 0:00:35]} Kg5 {[%emt 0:00:38]} 63. Qd5+ {[%emt 0:00:02]} Kh6 {[%emt 0:00:14]} 64. Kc3 {[%emt 0:00:34]} Re3+ {[%emt 0:00:57]} 65. Kc4 {[%emt 0:01:24]} Qf4+ {[%emt 0:00:07]} 66. Kc5 {[%emt 0:01:03]} Re5 {[%emt 0:00:05] Kd4} 0-1

[Event "Budapest Spring Festival 2019"]
[Site "Budapest"]
[Date "2019.04.12"]
[Round "4.39"]
[White "Hando, Vilmos"]
[Black "Geher, Koppany"]
[Result "1-0"]
[ECO "A10"]
[WhiteElo "2382"]
[BlackElo "2148"]
[Annotator "NA"]
[PlyCount "133"]
[EventDate "2019.04.09"]
[EventType "swiss"]
[EventCountry "HUN"]
[SourceTitle "playchess.com"]
[Source "ChessBase"]
[SourceQuality "1"]
[TimeControl "40/5400+30:1800+30"]

1. c4 {[%emt 0:00:03]} g6 {[%emt 0:00:14]} 2. Nc3 {[%emt 0:00:16]} c5 {[%emt 0:00:15]} 3. Nf3 {[%emt 0:00:25]} Bg7 {[%emt 0:00:09]} 4. d4 {[%emt 0:01:08]} cxd4 {[%emt 0:00:55]} 5. Nxd4 {[%emt 0:00:07]} Nc6 {[%emt 0:00:49]} 6. Nc2 {[%emt 0:02:37]} Nf6 {[%emt 0:06:11]} 7. e4 {[%emt 0:04:36]} d6 {[%emt 0:00:07]} 8. Bd3 {[%emt 0:02:39]} O-O {[%emt 0:00:09]} 9. O-O {[%emt 0:00:07]} Nd7 {[%emt 0:03:38] B37: Sicilian: Maroczy Bind with 5...Bg7, sidelines} 10. f3 $146 {[%emt 0:06:24]} ({Predecessor:} 10. Re1 Nc5 11. Bf1 b6 12. Qd2 Bb7 13. b3 f5 14. exf5 gxf5 15. Bb2 f4 16. Rad1 Kh8 17. Ba1 {½-½ (17) Cigan,S (2358)-Schreiner,P (2419) Austria 2015}) 10... Nc5 {[%emt 0:01:11]} 11. Rb1 {[%emt 0:11:51]} Be6 {[%emt 0:05:18]} 12. Nd5 {[%emt 0:08:45]} a5 {[%emt 0:03:26]} 13. Bg5 {[%emt 0:06:33]} Bxd5 {[%emt 0:05:14]} 14. cxd5 {[%emt 0:01:48]} Nb4 {[%emt 0:00:51]} 15. Bc4 {[%emt 0:07:22]} Nxc2 {[%emt 0:18:09]} 16. Qxc2 {[%emt 0:00:07]} b5 {[%emt 0:03:53]} 17. Be2 {[%emt 0:00:59]} b4 {[%emt 0:00:29]} 18. Kh1 {[%emt 0:08:03]} Qd7 {[%emt 0:03:55]} 19. Bc4 {[%emt 0:01:42]} Rfc8 {[%emt 0:03:20]} 20. Qe2 {[%emt 0:00:40]} Rab8 {[%emt 0:00:33]} 21. b3 {[%emt 0:01:32]} Rc7 {[%emt 0:04:48]} 22. Be3 {[%emt 0:04:05]} Qc8 {[%emt 0:05:25]} 23. Bb5 {[%emt 0:05:33]} Bc3 {[%emt 0:10:05]} 24. Rbd1 {[%emt 0:06:41]} Qb7 {[%emt 0:02:18]} 25. Bc6 {[%emt 0:03:01]} Qa6 {[%emt 0:00:36]} 26. Qxa6 {[%emt 0:03:59]} Nxa6 {[%emt 0:00:01]} 27. Rc1 {[%emt 0:02:49]} f6 {[%emt 0:10:12]} 28. g3 {[%emt 0:02:12]} Kf7 {[%emt 0:00:38]} 29. Kg2 {[%emt 0:00:30]} Nc5 {[%emt 0:03:20]} 30. Bxc5 {[%emt 0:02:59]} dxc5 {[%emt 0:00:02]} 31. a4 {[%emt 0:00:20]} Rd8 {[%emt 0:05:47]} 32. f4 {[%emt 0:04:05]} e6 {[%emt 0:02:27]} 33. Rfd1 {[%emt 0:01:01]} Ke7 {[%emt 0:01:29]} 34. Kf3 {[%emt 0:01:15]} exd5 {[%emt 0:00:27]} 35. Bxd5 {[%emt 0:00:39]} Rcd7 {[%emt 0:00:19]} 36. g4 {[%emt 0:00:35]} f5 {[%emt 0:00:46]} 37. g5 {[%emt 0:00:10]} Kf8 {[%emt 0:00:32]} 38. Rd3 {[%emt 0:00:30]} fxe4+ {[%emt 0:00:20]} 39. Kxe4 {[%emt 0:00:02]} Re7+ {[%emt 0:00:34]} 40. Kf3 {[%emt 0:00:00]} Bd4 {[%emt 0:00:00]} 41. Bc4 {[%emt 0:08:52]} Rde8 {[%emt 0:01:58]} 42. Kg4 {[%emt 0:01:24]} Re3 {[%emt 0:11:03]} 43. Rxe3 {[%emt 0:01:00]} Rxe3 {[%emt 0:00:11]} 44. h4 {[%emt 0:01:22]} Kg7 {[%emt 0:06:08]} 45. h5 {[%emt 0:04:08]} h6 {[%emt 0:00:56]} 46. hxg6 {[%emt 0:01:11]} hxg5 {[%emt 0:00:09]} 47. Kxg5 {[%emt 0:02:44]} Rg3+ {[%emt 0:02:16]} 48. Kf5 {[%emt 0:00:12]} Rxg6 {[%emt 0:00:14]} 49. Re1 {[%emt 0:02:10]} Rf6+ $16 {[%emt 0:00:06]} 50. Kg4 {[%emt 0:01:56]} Rg6+ {[%emt 0:01:01]} 51. Kf3 {[%emt 0:00:12]} Kf8 {[%emt 0:00:39]} 52. Rh1 {[%emt 0:00:30]} Ke7 {[%emt 0:01:09]} 53. Rh7+ {[%emt 0:00:39]} Rg7 {[%emt 0:00:02]} 54. Rh6 {[%emt 0:00:07]} Bf6 {[%emt 0:01:18]} 55. Ke4 {[%emt 0:00:08]} Rg2 {[%emt 0:08:03]} 56. Kf5 {[%emt 0:00:07]} Bc3 {[%emt 0:02:59]} 57. Ra6 {[%emt 0:00:30]} Bd2 {[%emt 0:00:50]} 58. Ra7+ {[%emt 0:05:43]} Kf8 {[%emt 0:00:26]} 59. Ke5 {[%emt 0:01:13]} Rg4 {[%emt 0:00:32]} 60. f5 {[%emt 0:00:52]} Rxc4 {[%emt 0:00:32]} 61. bxc4 {[%emt 0:00:17]} b3 {[%emt 0:00:01]} 62. Rb7 {[%emt 0:02:18]} Bb4 {[%emt 0:00:08]} 63. Ke6 {[%emt 0:00:18]} b2 {[%emt 0:00:54]} 64. f6 {[%emt 0:00:24]} Kg8 {[%emt 0:00:05]} 65. Rg7+ {[%emt 0:00:53]} Kf8 {[%emt 0:00:20]} 66. Rg1 {[%emt 0:00:26]} Bc3 {[%emt 0:00:29]} 67. Rh1 {[%emt 0:01:44]} 1-0